[Event "Late-Titled-Tuesday-Blitz-December-26-2023"]
[Site "Chess.com"]
[Date "2023.12.26"]
[Round "10"]
[White "Zadar321"]
[Black "SCIM"]
[Result "1-0"]
[WhiteElo "2473"]
[BlackElo "2508"]
[TimeControl "180+1"]
[EndTime "15:52:27 PST"]
[Termination "Zadar321 won by resignation"]

1. e4 {[%clk 0:03:00]} 1... e6 {[%clk 0:03:00.9]} 2. d4 {[%clk 0:03:00]} 2... d5
{[%clk 0:03:01.4]} 3. Nd2 {[%clk 0:03:00.3]} 3... h6 {[%clk 0:03:00]} 4. Bd3
{[%clk 0:02:59.7]} 4... c5 {[%clk 0:02:57]} 5. dxc5 {[%clk 0:02:59]} 5... Bxc5
{[%clk 0:02:57.6]} 6. Ngf3 {[%clk 0:02:59.2]} 6... Nc6 {[%clk 0:02:54.4]} 7. Qe2
{[%clk 0:02:59.5]} 7... Nge7 {[%clk 0:02:53.1]} 8. O-O {[%clk 0:02:59.6]} 8...
O-O {[%clk 0:02:48.9]} 9. a3 {[%clk 0:02:59.2]} 9... a5 {[%clk 0:02:38.3]} 10.
Nb3 {[%clk 0:02:55.4]} 10... Bb6 {[%clk 0:02:32.2]} 11. Be3 {[%clk 0:02:54.1]}
11... Bxe3 {[%clk 0:02:30.7]} 12. Qxe3 {[%clk 0:02:54.2]} 12... a4 {[%clk
0:02:28]} 13. Nbd4 {[%clk 0:02:53.4]} 13... Qc7 {[%clk 0:01:56.6]} 14. e5 {[%clk
0:02:52.3]} 14... Nxd4 {[%clk 0:01:49.3]} 15. Nxd4 {[%clk 0:02:52]} 15... Nc6
{[%clk 0:01:42]} 16. f4 {[%clk 0:02:51.3]} 16... Nxd4 {[%clk 0:01:41.1]} 17.
Qxd4 {[%clk 0:02:51.4]} 17... Bd7 {[%clk 0:01:40.7]} 18. c3 {[%clk 0:02:51.2]}
18... Rfc8 {[%clk 0:01:39.2]} 19. Kf2 {[%clk 0:02:49.7]} 19... Qc5 {[%clk
0:01:38.6]} 20. Qxc5 {[%clk 0:02:49.2]} 20... Rxc5 {[%clk 0:01:37.7]} 21. Ke3
{[%clk 0:02:50.1]} 21... Bb5 {[%clk 0:01:31.9]} 22. Rfd1 {[%clk 0:02:47.8]}
22... Bxd3 {[%clk 0:01:30.1]} 23. Rxd3 {[%clk 0:02:48.7]} 23... Rb5 {[%clk
0:01:29.3]} 24. Rb1 {[%clk 0:02:48.6]} 24... Kf8 {[%clk 0:01:27.6]} 25. Rd4
{[%clk 0:02:48.5]} 25... Ke7 {[%clk 0:01:27.3]} 26. Kd3 {[%clk 0:02:47.7]} 26...
Kd7 {[%clk 0:01:26.7]} 27. c4 {[%clk 0:02:42.2]} 27... Rb3+ {[%clk 0:01:24.2]}
28. Kd2 {[%clk 0:02:40.6]} 28... Kc6 {[%clk 0:01:17.2]} 29. cxd5+ {[%clk
0:02:40.5]} 29... Kc5 {[%clk 0:01:12.2]} 30. Rd3 {[%clk 0:02:25.9]} 30... Rxd3+
{[%clk 0:01:11.7]} 31. Kxd3 {[%clk 0:02:26.5]} 31... Kxd5 {[%clk 0:01:12.2]} 32.
Rc1 {[%clk 0:02:25.6]} 32... Ra6 {[%clk 0:01:00.3]} 33. Rc7 {[%clk 0:02:25.2]}
33... Rb6 {[%clk 0:01:00.5]} 34. Rxf7 {[%clk 0:02:16.3]} 34... Rxb2 {[%clk
0:00:58.5]} 35. Rxg7 {[%clk 0:02:12]} 35... b5 {[%clk 0:00:57]} 36. Rd7+ {[%clk
0:02:04.1]} 36... Kc5 {[%clk 0:00:52.4]} 37. Rc7+ {[%clk 0:02:02.9]} 37... Kd5
{[%clk 0:00:48.2]} 38. Rd7+ {[%clk 0:02:02.5]} 38... Kc6 {[%clk 0:00:25.3]} 39.
Rd6+ {[%clk 0:02:02.2]} 39... Kc5 {[%clk 0:00:25.7]} 40. Rxe6 {[%clk 0:02:02.5]}
40... Rb3+ {[%clk 0:00:26.3]} 41. Ke4 {[%clk 0:02:01.4]} 41... Rxa3 {[%clk
0:00:26.5]} 42. Rxh6 {[%clk 0:02:01.8]} 42... Ra1 {[%clk 0:00:25]} 43. f5 {[%clk
0:01:58]} 43... a3 {[%clk 0:00:24.7]} 44. Ra6 {[%clk 0:01:58.1]} 44... b4 {[%clk
0:00:24]} 45. f6 {[%clk 0:01:57.8]} 45... Kb5 {[%clk 0:00:18.7]} 46. Ra8 {[%clk
0:01:57.6]} 46... b3 {[%clk 0:00:17.9]} 47. f7 {[%clk 0:01:56.2]} 47... Rf1
{[%clk 0:00:13.1]} 48. Rxa3 {[%clk 0:01:53.3]} 48... Kb4 {[%clk 0:00:12.7]} 49.
Rxb3+ {[%clk 0:01:50.7]} 49... Kxb3 {[%clk 0:00:11]} 50. e6 {[%clk 0:01:51.6]}
1-0

[Event "Late-Titled-Tuesday-Blitz-December-26-2023"]
[Site "Chess.com"]
[Date "2023.12.26"]
[Round "10"]
[White "Tunahan_Makaraci"]
[Black "Sanyura"]
[Result "0-1"]
[WhiteElo "2505"]
[BlackElo "2610"]
[TimeControl "180+1"]
[EndTime "15:52:29 PST"]
[Termination "Sanyura won on time"]

1. e4 {[%clk 0:02:48.4]} 1... c5 {[%clk 0:02:59.8]} 2. c3 {[%clk 0:02:44.7]}
2... g6 {[%clk 0:02:58.7]} 3. Nf3 {[%clk 0:02:44.2]} 3... Bg7 {[%clk 0:02:58.5]}
4. d4 {[%clk 0:02:44.3]} 4... cxd4 {[%clk 0:02:58.8]} 5. cxd4 {[%clk 0:02:45.2]}
5... d5 {[%clk 0:02:59.4]} 6. e5 {[%clk 0:02:44.7]} 6... Nc6 {[%clk 0:02:59.9]}
7. Bb5 {[%clk 0:02:44.7]} 7... Nh6 {[%clk 0:02:59.8]} 8. Bxc6+ {[%clk
0:02:42.6]} 8... bxc6 {[%clk 0:02:59.7]} 9. O-O {[%clk 0:02:43.4]} 9... O-O
{[%clk 0:03:00.1]} 10. Nbd2 {[%clk 0:02:43.1]} 10... f6 {[%clk 0:03:00.5]} 11.
Re1 {[%clk 0:02:25.9]} 11... Nf7 {[%clk 0:02:52.1]} 12. exf6 {[%clk 0:01:19.6]}
12... exf6 {[%clk 0:02:52.1]} 13. b3 {[%clk 0:01:18]} 13... g5 {[%clk
0:02:45.5]} 14. Ba3 {[%clk 0:01:16.5]} 14... Re8 {[%clk 0:02:45.4]} 15. Qc2
{[%clk 0:01:15.8]} 15... Bd7 {[%clk 0:02:43.8]} 16. Nf1 {[%clk 0:01:13.1]} 16...
Qa5 {[%clk 0:02:23.8]} 17. Bc5 {[%clk 0:01:07.7]} 17... f5 {[%clk 0:02:16.7]}
18. b4 {[%clk 0:00:58.9]} 18... Qc7 {[%clk 0:02:13]} 19. Ne3 {[%clk 0:00:56.7]}
19... Re4 {[%clk 0:02:02.7]} 20. Nd2 {[%clk 0:00:50.6]} 20... Rh4 {[%clk
0:01:57.4]} 21. g3 {[%clk 0:00:47.2]} 21... Re4 {[%clk 0:01:39.9]} 22. Nxe4
{[%clk 0:00:45.3]} 22... fxe4 {[%clk 0:01:40.8]} 23. b5 {[%clk 0:00:40.5]} 23...
h5 {[%clk 0:01:28.7]} 24. bxc6 {[%clk 0:00:40.2]} 24... Bxc6 {[%clk 0:01:29.6]}
25. Qb3 {[%clk 0:00:38.7]} 25... Qd7 {[%clk 0:01:29.7]} 26. Rf1 {[%clk
0:00:29.3]} 26... g4 {[%clk 0:01:24.9]} 27. Ng2 {[%clk 0:00:25.5]} 27... Ng5
{[%clk 0:01:23.5]} 28. Nf4 {[%clk 0:00:21]} 28... h4 {[%clk 0:01:23.3]} 29. Rac1
{[%clk 0:00:18.2]} 29... Kf7 {[%clk 0:01:18.6]} 30. Rfd1 {[%clk 0:00:12.4]}
30... Nf3+ {[%clk 0:01:16.7]} 31. Kg2 {[%clk 0:00:10.3]} 31... Rh8 {[%clk
0:01:15.8]} 32. Rc3 {[%clk 0:00:05.5]} 32... hxg3 {[%clk 0:01:11.7]} 33. hxg3
{[%clk 0:00:04.2]} 33... Rh2+ {[%clk 0:01:11.8]} 34. Kf1 {[%clk 0:00:04.5]}
34... Bb5+ {[%clk 0:01:11.5]} 0-1

[Event "Late-Titled-Tuesday-Blitz-December-26-2023"]
[Site "Chess.com"]
[Date "2023.12.26"]
[Round "10"]
[White "staz_staz"]
[Black "YouShallNotPass001"]
[Result "0-1"]
[WhiteElo "2277"]
[BlackElo "2501"]
[TimeControl "180+1"]
[EndTime "15:52:38 PST"]
[Termination "YouShallNotPass001 won by checkmate"]

1. d4 {[%clk 0:03:00.9]} 1... Nf6 {[%clk 0:02:59.3]} 2. Nf3 {[%clk 0:03:00.2]}
2... e6 {[%clk 0:03:00.2]} 3. c4 {[%clk 0:02:57.5]} 3... c5 {[%clk 0:03:01.1]}
4. d5 {[%clk 0:02:55.2]} 4... exd5 {[%clk 0:03:02]} 5. cxd5 {[%clk 0:02:55.7]}
5... d6 {[%clk 0:03:02.9]} 6. Nc3 {[%clk 0:02:53.9]} 6... g6 {[%clk 0:03:03]} 7.
Bf4 {[%clk 0:02:49.9]} 7... Bg7 {[%clk 0:03:02.4]} 8. Qa4+ {[%clk 0:02:49.3]}
8... Bd7 {[%clk 0:03:02.4]} 9. Qb3 {[%clk 0:02:49.5]} 9... b5 {[%clk 0:03:02.4]}
10. Bxd6 {[%clk 0:02:10.8]} 10... Qb6 {[%clk 0:03:00.1]} 11. Be5 {[%clk
0:01:51]} 11... O-O {[%clk 0:02:59.7]} 12. e3 {[%clk 0:01:48.7]} 12... c4 {[%clk
0:02:53.1]} 13. Qd1 {[%clk 0:01:36.1]} 13... Na6 {[%clk 0:02:52.5]} 14. Be2
{[%clk 0:01:28.7]} 14... b4 {[%clk 0:02:45.2]} 15. Nb1 {[%clk 0:00:59.1]} 15...
Rac8 {[%clk 0:02:32.6]} 16. O-O {[%clk 0:00:58.8]} 16... Rfd8 {[%clk 0:02:25.3]}
17. Nbd2 {[%clk 0:00:58.7]} 17... Bb5 {[%clk 0:02:17.1]} 18. Bd4 {[%clk
0:00:52]} 18... Qb7 {[%clk 0:02:08]} 19. e4 {[%clk 0:00:38.1]} 19... c3 {[%clk
0:02:05.8]} 20. bxc3 {[%clk 0:00:34.9]} 20... bxc3 {[%clk 0:02:05.5]} 21. Bxb5
{[%clk 0:00:19.9]} 21... Qxb5 {[%clk 0:02:01]} 22. Nb3 {[%clk 0:00:19.3]} 22...
Nxe4 {[%clk 0:01:57.9]} 23. Bxg7 {[%clk 0:00:18.7]} 23... Kxg7 {[%clk
0:01:58.8]} 24. Qd4+ {[%clk 0:00:18.8]} 24... Nf6 {[%clk 0:01:58.4]} 25. Rac1
{[%clk 0:00:16.2]} 25... Rxd5 {[%clk 0:01:57.1]} 26. Qh4 {[%clk 0:00:13.6]}
26... Nb4 {[%clk 0:01:48.8]} 27. Nbd4 {[%clk 0:00:08.6]} 27... Qb6 {[%clk
0:01:46.2]} 28. a3 {[%clk 0:00:05.9]} 28... Nd3 {[%clk 0:01:39.1]} 29. Rcd1
{[%clk 0:00:06.4]} 29... Nb2 {[%clk 0:01:37.3]} 30. Rc1 {[%clk 0:00:05.7]} 30...
Rc4 {[%clk 0:01:33.4]} 31. Ng5 {[%clk 0:00:03.4]} 31... Rdxd4 {[%clk 0:01:18.8]}
32. Qg3 {[%clk 0:00:03]} 32... Rg4 {[%clk 0:01:15.8]} 33. Qe5 {[%clk 0:00:01.8]}
33... Qc7 {[%clk 0:01:09]} 34. Qe3 {[%clk 0:00:02.1]} 34... Qc6 {[%clk
0:00:58.3]} 35. h3 {[%clk 0:00:02.4]} 35... Qxg2# {[%clk 0:00:56.2]} 0-1

[Event "Late-Titled-Tuesday-Blitz-December-26-2023"]
[Site "Chess.com"]
[Date "2023.12.26"]
[Round "10"]
[White "dennisodessa"]
[Black "Veleamater"]
[Result "1-0"]
[WhiteElo "2507"]
[BlackElo "2344"]
[TimeControl "180+1"]
[EndTime "15:52:45 PST"]
[Termination "dennisodessa won by checkmate"]

1. d4 {[%clk 0:03:00.9]} 1... d6 {[%clk 0:03:00.9]} 2. c4 {[%clk 0:03:00.6]}
2... g6 {[%clk 0:03:01.8]} 3. Nc3 {[%clk 0:02:58.2]} 3... Bg7 {[%clk 0:03:02.4]}
4. e4 {[%clk 0:02:56.7]} 4... Nf6 {[%clk 0:03:02.9]} 5. f3 {[%clk 0:02:55.9]}
5... O-O {[%clk 0:03:03.4]} 6. Be3 {[%clk 0:02:56.2]} 6... Nc6 {[%clk
0:03:04.1]} 7. Qd2 {[%clk 0:02:52.6]} 7... e5 {[%clk 0:03:04.4]} 8. d5 {[%clk
0:02:52.9]} 8... Ne7 {[%clk 0:03:04.3]} 9. Bd3 {[%clk 0:02:50]} 9... c6 {[%clk
0:03:04.7]} 10. Nge2 {[%clk 0:02:48.1]} 10... b5 {[%clk 0:03:04.9]} 11. dxc6
{[%clk 0:02:38.5]} 11... b4 {[%clk 0:03:04.7]} 12. Nd5 {[%clk 0:02:37.4]} 12...
Nxc6 {[%clk 0:03:05.3]} 13. Nxb4 {[%clk 0:02:35.7]} 13... Nxb4 {[%clk
0:02:52.3]} 14. Qxb4 {[%clk 0:02:36.6]} 14... Nh5 {[%clk 0:02:52.4]} 15. O-O
{[%clk 0:02:32.7]} 15... Be6 {[%clk 0:02:51]} 16. Rfd1 {[%clk 0:02:20.4]} 16...
Rb8 {[%clk 0:02:46.5]} 17. Qd2 {[%clk 0:02:18]} 17... Nf4 {[%clk 0:02:46]} 18.
b3 {[%clk 0:02:03.9]} 18... Nxd3 {[%clk 0:02:44.7]} 19. Qxd3 {[%clk 0:02:04.8]}
19... f5 {[%clk 0:02:43.9]} 20. Qxd6 {[%clk 0:01:57.4]} 20... Qf6 {[%clk
0:02:40.1]} 21. Bxa7 {[%clk 0:01:33.5]} 21... Rbd8 {[%clk 0:02:39.8]} 22. Qc6
{[%clk 0:01:25.6]} 22... fxe4 {[%clk 0:02:35.2]} 23. fxe4 {[%clk 0:01:16.8]}
23... Rxd1+ {[%clk 0:02:33.8]} 24. Rxd1 {[%clk 0:01:16]} 24... Bg4 {[%clk
0:02:33.9]} 25. Qxf6 {[%clk 0:01:15.8]} 25... Bxf6 {[%clk 0:02:33.8]} 26. Re1
{[%clk 0:01:13.7]} 26... Ra8 {[%clk 0:02:33.6]} 27. Bc5 {[%clk 0:00:55.5]} 27...
Rxa2 {[%clk 0:02:33.1]} 28. Ng3 {[%clk 0:00:55]} 28... h5 {[%clk 0:02:31.5]} 29.
h3 {[%clk 0:00:47.7]} 29... Be6 {[%clk 0:02:28]} 30. Ne2 {[%clk 0:00:32.3]}
30... Rb2 {[%clk 0:02:25.7]} 31. Nc3 {[%clk 0:00:32.6]} 31... Rxb3 {[%clk
0:02:24.6]} 32. Nd5 {[%clk 0:00:33.2]} 32... Bh4 {[%clk 0:02:24.3]} 33. Bf2
{[%clk 0:00:30.8]} 33... Bg5 {[%clk 0:02:20.4]} 34. h4 {[%clk 0:00:27.5]} 34...
Bd8 {[%clk 0:02:18.6]} 35. Rc1 {[%clk 0:00:23.3]} 35... Bd7 {[%clk 0:02:14.7]}
36. c5 {[%clk 0:00:22.2]} 36... Bc6 {[%clk 0:02:15.1]} 37. Ra1 {[%clk
0:00:17.9]} 37... Kf7 {[%clk 0:02:00.8]} 38. Ra6 {[%clk 0:00:17]} 38... Bb7
{[%clk 0:01:58.5]} 39. Rd6 {[%clk 0:00:14.7]} 39... Ba5 {[%clk 0:01:55.1]} 40.
c6 {[%clk 0:00:12.4]} 40... Bc8 {[%clk 0:01:54.5]} 41. Rf6+ {[%clk 0:00:08.7]}
41... Kg7 {[%clk 0:01:52.8]} 42. Bc5 {[%clk 0:00:07.6]} 42... Rb1+ {[%clk
0:01:51.8]} 43. Kh2 {[%clk 0:00:07]} 43... Rc1 {[%clk 0:01:51.7]} 44. Bf8+
{[%clk 0:00:04.2]} 44... Kh7 {[%clk 0:01:50.9]} 45. Ne7 {[%clk 0:00:05.1]} 45...
Bd8 {[%clk 0:01:20.7]} 46. Rf7+ {[%clk 0:00:05.3]} 46... Kh8 {[%clk 0:01:18.9]}
47. Nxg6+ {[%clk 0:00:04.7]} 47... Kg8 {[%clk 0:01:18.3]} 48. Rg7# {[%clk
0:00:05.5]} 1-0

[Event "Late-Titled-Tuesday-Blitz-December-26-2023"]
[Site "Chess.com"]
[Date "2023.12.26"]
[Round "10"]
[White "INLOVEWITHF"]
[Black "laskakid"]
[Result "1-0"]
[WhiteElo "2526"]
[BlackElo "2360"]
[TimeControl "180+1"]
[EndTime "15:52:49 PST"]
[Termination "INLOVEWITHF won by resignation"]

1. a4 {[%clk 0:02:48]} 1... d5 {[%clk 0:02:53.8]} 2. Nf3 {[%clk 0:02:41.5]} 2...
c5 {[%clk 0:02:52.6]} 3. e3 {[%clk 0:02:35]} 3... Nc6 {[%clk 0:02:52.1]} 4. d4
{[%clk 0:02:30.8]} 4... cxd4 {[%clk 0:02:46.9]} 5. exd4 {[%clk 0:02:30.7]} 5...
Bg4 {[%clk 0:02:46.7]} 6. Bf4 {[%clk 0:02:23.7]} 6... Bxf3 {[%clk 0:02:15.8]} 7.
Qxf3 {[%clk 0:02:20.8]} 7... Nxd4 {[%clk 0:02:05.1]} 8. Bb5+ {[%clk 0:01:24.1]}
8... Nxb5 {[%clk 0:01:55.2]} 9. axb5 {[%clk 0:01:25]} 9... e6 {[%clk 0:01:51.6]}
10. O-O {[%clk 0:01:21.6]} 10... Nf6 {[%clk 0:01:46.1]} 11. c4 {[%clk
0:00:59.3]} 11... Be7 {[%clk 0:01:28.6]} 12. Nc3 {[%clk 0:00:58.4]} 12... O-O
{[%clk 0:01:14.6]} 13. Rfd1 {[%clk 0:00:46.8]} 13... Bb4 {[%clk 0:01:00]} 14.
cxd5 {[%clk 0:00:43.1]} 14... Bxc3 {[%clk 0:00:59.4]} 15. bxc3 {[%clk
0:00:42.7]} 15... exd5 {[%clk 0:00:58.1]} 16. c4 {[%clk 0:00:42.5]} 16... Qe8
{[%clk 0:00:48.9]} 17. Bd6 {[%clk 0:00:38]} 17... dxc4 {[%clk 0:00:47.8]} 18.
Bxf8 {[%clk 0:00:37.7]} 18... Kxf8 {[%clk 0:00:43.8]} 19. Qxb7 {[%clk
0:00:38.1]} 19... Rb8 {[%clk 0:00:39.5]} 20. Qc7 {[%clk 0:00:34.7]} 20... Rxb5
{[%clk 0:00:25.7]} 21. Rd8 {[%clk 0:00:32.5]} 21... Re5 {[%clk 0:00:17.1]} 22.
Rxe8+ {[%clk 0:00:30.9]} 22... Rxe8 {[%clk 0:00:17.2]} 23. Qxc4 {[%clk
0:00:31.1]} 23... Kg8 {[%clk 0:00:12.4]} 24. h3 {[%clk 0:00:30.5]} 24... h6
{[%clk 0:00:12.2]} 25. Rxa7 {[%clk 0:00:29.4]} 25... Rf8 {[%clk 0:00:11.7]} 26.
g4 {[%clk 0:00:29.1]} 26... g6 {[%clk 0:00:11.1]} 27. f4 {[%clk 0:00:28.9]}
27... Kg7 {[%clk 0:00:11.3]} 28. Kg2 {[%clk 0:00:28.9]} 28... g5 {[%clk
0:00:10.9]} 29. f5 {[%clk 0:00:27.4]} 1-0

[Event "Late-Titled-Tuesday-Blitz-December-26-2023"]
[Site "Chess.com"]
[Date "2023.12.26"]
[Round "10"]
[White "Camilla_Lee"]
[Black "egnfanclub"]
[Result "1-0"]
[WhiteElo "2612"]
[BlackElo "2382"]
[TimeControl "180+1"]
[EndTime "15:52:50 PST"]
[Termination "Camilla_Lee won on time"]

1. e4 {[%clk 0:03:00.9]} 1... e5 {[%clk 0:02:59.3]} 2. Nf3 {[%clk 0:03:01]} 2...
Nc6 {[%clk 0:02:59.3]} 3. Nc3 {[%clk 0:03:01.5]} 3... Nf6 {[%clk 0:02:59.2]} 4.
d4 {[%clk 0:03:02]} 4... exd4 {[%clk 0:02:59.3]} 5. Nd5 {[%clk 0:03:01.9]} 5...
Nb4 {[%clk 0:02:58.6]} 6. Bc4 {[%clk 0:03:01.5]} 6... Nbxd5 {[%clk 0:02:49.5]}
7. exd5 {[%clk 0:03:01.6]} 7... Bc5 {[%clk 0:02:46.8]} 8. O-O {[%clk 0:02:56.2]}
8... O-O {[%clk 0:02:45.6]} 9. Bg5 {[%clk 0:02:52.3]} 9... h6 {[%clk 0:02:41.4]}
10. Bh4 {[%clk 0:02:52.2]} 10... d6 {[%clk 0:02:41.4]} 11. Nxd4 {[%clk
0:02:49.1]} 11... Re8 {[%clk 0:02:32.6]} 12. Nb3 {[%clk 0:02:37.9]} 12... Bb6
{[%clk 0:02:30.7]} 13. Re1 {[%clk 0:02:35.1]} 13... Bd7 {[%clk 0:02:09.3]} 14.
Qf3 {[%clk 0:02:31.8]} 14... Re5 {[%clk 0:01:39.3]} 15. Rxe5 {[%clk 0:02:13.8]}
15... dxe5 {[%clk 0:01:40.2]} 16. Nd2 {[%clk 0:02:01.2]} 16... Qe7 {[%clk
0:01:24.2]} 17. Ne4 {[%clk 0:01:55.8]} 17... Qb4 {[%clk 0:01:07.9]} 18. Bxf6
{[%clk 0:00:46.7]} 18... Qxc4 {[%clk 0:00:59.1]} 19. Qg3 {[%clk 0:00:46.2]}
19... g6 {[%clk 0:00:53.2]} 20. Qxe5 {[%clk 0:00:42.7]} 20... Re8 {[%clk
0:00:47.9]} 21. Be7 {[%clk 0:00:42.2]} 21... Bd4 {[%clk 0:00:07.6]} 22. Nf6+
{[%clk 0:00:41.7]} 22... Kh8 {[%clk 0:00:07.6]} 23. Qf4 {[%clk 0:00:19.2]} 1-0

[Event "Late-Titled-Tuesday-Blitz-December-26-2023"]
[Site "Chess.com"]
[Date "2023.12.26"]
[Round "10"]
[White "aranibos"]
[Black "fugadelafuga"]
[Result "0-1"]
[WhiteElo "2179"]
[BlackElo "2430"]
[TimeControl "180+1"]
[EndTime "15:52:53 PST"]
[Termination "fugadelafuga won by checkmate"]

1. d4 {[%clk 0:02:59.4]} 1... Nf6 {[%clk 0:03:00]} 2. Nf3 {[%clk 0:02:59.7]}
2... d5 {[%clk 0:02:58.3]} 3. Bg5 {[%clk 0:02:59.9]} 3... e6 {[%clk 0:02:48.9]}
4. Nbd2 {[%clk 0:02:57.2]} 4... Be7 {[%clk 0:02:46.2]} 5. c3 {[%clk 0:02:57.4]}
5... c5 {[%clk 0:02:44.1]} 6. e3 {[%clk 0:02:57.6]} 6... Nc6 {[%clk 0:02:43.9]}
7. Bd3 {[%clk 0:02:56.8]} 7... h6 {[%clk 0:02:43.9]} 8. Bh4 {[%clk 0:02:53.1]}
8... O-O {[%clk 0:02:43.9]} 9. Bxf6 {[%clk 0:02:41.5]} 9... Bxf6 {[%clk
0:02:40.4]} 10. dxc5 {[%clk 0:02:42]} 10... Qe7 {[%clk 0:02:34.8]} 11. Nb3
{[%clk 0:02:33.9]} 11... e5 {[%clk 0:02:32.8]} 12. e4 {[%clk 0:02:34.4]} 12...
dxe4 {[%clk 0:02:26.3]} 13. Bxe4 {[%clk 0:02:33.9]} 13... a5 {[%clk 0:02:26.3]}
14. a4 {[%clk 0:02:23.6]} 14... Be6 {[%clk 0:02:20.4]} 15. O-O {[%clk
0:02:17.1]} 15... Rfd8 {[%clk 0:02:16.9]} 16. Qc2 {[%clk 0:02:15.5]} 16... g6
{[%clk 0:02:15.2]} 17. Bxc6 {[%clk 0:02:00.2]} 17... bxc6 {[%clk 0:02:13.7]} 18.
Rfe1 {[%clk 0:01:58.2]} 18... Bd5 {[%clk 0:02:02.1]} 19. Nfd2 {[%clk 0:01:49]}
19... Bg7 {[%clk 0:01:58]} 20. c4 {[%clk 0:01:27.7]} 20... Be6 {[%clk
0:01:55.7]} 21. Ne4 {[%clk 0:01:23]} 21... Bf5 {[%clk 0:01:52.8]} 22. f3 {[%clk
0:01:05.1]} 22... Rdb8 {[%clk 0:01:47.1]} 23. Qc3 {[%clk 0:00:54.1]} 23... Be6
{[%clk 0:01:42.9]} 24. Nbd2 {[%clk 0:00:40.4]} 24... f5 {[%clk 0:01:42]} 25. Nd6
{[%clk 0:00:39.9]} 25... e4 {[%clk 0:01:41.6]} 26. Qc2 {[%clk 0:00:38]} 26...
Rxb2 {[%clk 0:01:41.1]} 27. Qc1 {[%clk 0:00:34.2]} 27... e3 {[%clk 0:01:23.8]}
28. Nf1 {[%clk 0:00:23.5]} 28... f4 {[%clk 0:01:20.9]} 29. Rb1 {[%clk
0:00:21.9]} 29... Rab8 {[%clk 0:01:15.5]} 30. Rxb2 {[%clk 0:00:21]} 30... Rxb2
{[%clk 0:01:16.4]} 31. g3 {[%clk 0:00:20.2]} 31... Qg5 {[%clk 0:01:08.8]} 32.
Ne4 {[%clk 0:00:18.8]} 32... Qe5 {[%clk 0:01:02.7]} 33. Qd1 {[%clk 0:00:17.3]}
33... Qd4 {[%clk 0:00:46.6]} 34. gxf4 {[%clk 0:00:13.8]} 34... e2+ {[%clk
0:00:44.4]} 35. Qxd4 {[%clk 0:00:14.4]} 35... Bxd4+ {[%clk 0:00:40.9]} 36. Kg2
{[%clk 0:00:13.6]} 36... exf1=Q+ {[%clk 0:00:39.5]} 37. Kxf1 {[%clk 0:00:13.8]}
37... Bh3# {[%clk 0:00:36.8]} 0-1

[Event "Late-Titled-Tuesday-Blitz-December-26-2023"]
[Site "Chess.com"]
[Date "2023.12.26"]
[Round "10"]
[White "Dewarfd"]
[Black "PawnEatingZombie"]
[Result "1/2-1/2"]
[WhiteElo "2113"]
[BlackElo "2100"]
[TimeControl "180+1"]
[EndTime "15:52:53 PST"]
[Termination "Game drawn by repetition"]

1. d4 {[%clk 0:02:48.5]} 1... Nf6 {[%clk 0:02:59.4]} 2. e3 {[%clk 0:02:48.5]}
2... g6 {[%clk 0:02:59.7]} 3. Nf3 {[%clk 0:02:48.2]} 3... Bg7 {[%clk 0:03:00.3]}
4. Be2 {[%clk 0:02:48.7]} 4... O-O {[%clk 0:03:00.9]} 5. b4 {[%clk 0:02:47.7]}
5... d6 {[%clk 0:02:58]} 6. Bb2 {[%clk 0:02:47.5]} 6... a5 {[%clk 0:02:57.8]} 7.
a3 {[%clk 0:02:45.8]} 7... axb4 {[%clk 0:02:57.4]} 8. axb4 {[%clk 0:02:45.7]}
8... Rxa1 {[%clk 0:02:58.3]} 9. Bxa1 {[%clk 0:02:46.1]} 9... e6 {[%clk
0:02:55.4]} 10. c4 {[%clk 0:02:45.8]} 10... Nc6 {[%clk 0:02:55.5]} 11. b5 {[%clk
0:02:43.8]} 11... Ne7 {[%clk 0:02:56]} 12. O-O {[%clk 0:02:42.5]} 12... Ne4
{[%clk 0:02:54.4]} 13. Nfd2 {[%clk 0:02:41.2]} 13... f5 {[%clk 0:02:53.9]} 14.
Nxe4 {[%clk 0:02:39.8]} 14... fxe4 {[%clk 0:02:53.8]} 15. Nc3 {[%clk 0:02:37.3]}
15... d5 {[%clk 0:02:54.1]} 16. f3 {[%clk 0:02:35]} 16... Nf5 {[%clk 0:02:45]}
17. Qd2 {[%clk 0:02:23.9]} 17... e5 {[%clk 0:02:26.7]} 18. Nxd5 {[%clk
0:02:13.7]} 18... exd4 {[%clk 0:02:25.7]} 19. Bxd4 {[%clk 0:02:13.4]} 19... Nxd4
{[%clk 0:02:07.5]} 20. exd4 {[%clk 0:02:12.7]} 20... c6 {[%clk 0:02:07.1]} 21.
bxc6 {[%clk 0:02:07.6]} 21... bxc6 {[%clk 0:02:07.1]} 22. Nb4 {[%clk 0:01:57.6]}
22... Qxd4+ {[%clk 0:01:54.4]} 23. Qxd4 {[%clk 0:01:55.7]} 23... Bxd4+ {[%clk
0:01:55.3]} 24. Kh1 {[%clk 0:01:55.6]} 24... c5 {[%clk 0:01:43.6]} 25. Nd5
{[%clk 0:01:51.3]} 25... exf3 {[%clk 0:00:59.6]} 26. Rxf3 {[%clk 0:01:38.2]}
26... Rxf3 {[%clk 0:00:56.3]} 27. Bxf3 {[%clk 0:01:39.1]} 27... Kg7 {[%clk
0:00:53.7]} 28. g3 {[%clk 0:01:20.5]} 28... Bf5 {[%clk 0:00:53.4]} 29. Ne7
{[%clk 0:01:14.5]} 29... Bd3 {[%clk 0:00:50.8]} 30. Bd5 {[%clk 0:01:14.3]} 30...
Kf6 {[%clk 0:00:42.5]} 31. Nc6 {[%clk 0:01:11.6]} 31... Be3 {[%clk 0:00:31.1]}
32. Kg2 {[%clk 0:01:11.3]} 32... Be2 {[%clk 0:00:27.3]} 33. h4 {[%clk
0:01:08.6]} 33... g5 {[%clk 0:00:20.5]} 34. hxg5+ {[%clk 0:01:02.1]} 34... Kxg5
{[%clk 0:00:19.8]} 35. Ne5 {[%clk 0:00:58.3]} 35... h5 {[%clk 0:00:15.9]} 36.
Nf3+ {[%clk 0:00:55.4]} 36... Bxf3+ {[%clk 0:00:15]} 37. Kxf3 {[%clk 0:00:55.5]}
37... Bd4 {[%clk 0:00:15]} 38. Bf7 {[%clk 0:00:54.9]} 38... h4 {[%clk
0:00:13.9]} 39. gxh4+ {[%clk 0:00:54.7]} 39... Kxh4 {[%clk 0:00:14.6]} 40. Ke4
{[%clk 0:00:55.2]} 40... Kg3 {[%clk 0:00:14.9]} 41. Bd5 {[%clk 0:00:56.1]} 41...
Kf2 {[%clk 0:00:15.1]} 42. Bc6 {[%clk 0:00:57]} 42... Ke1 {[%clk 0:00:15.5]} 43.
Bd5 {[%clk 0:00:57.9]} 43... Kd2 {[%clk 0:00:16.1]} 44. Be6 {[%clk 0:00:58.3]}
44... Kc3 {[%clk 0:00:16.7]} 45. Kd5 {[%clk 0:00:58.6]} 45... Kb3 {[%clk
0:00:16.3]} 46. Bd7 {[%clk 0:00:59.1]} 46... Kc3 {[%clk 0:00:16.7]} 47. Be6
{[%clk 0:01:00]} 47... Kb3 {[%clk 0:00:16.9]} 48. Bd7 {[%clk 0:01:00.9]} 48...
Kc3 {[%clk 0:00:17.5]} 49. Be6 {[%clk 0:01:01.8]} 1/2-1/2